Cogmind - Beta 15 *** ADVENTURER MODE // 2025.07.21 @ 21:47:00 Player: Gentle Jesus Result: Destroyed by JG-RIB(x) with Makeshift Spear Performance ------------- Evolutions (1) 500 Regions Visited (6) 1200 Robots Destroyed (50) 250 Value Destroyed (1397) 1397 Prototype IDs (4) 80 Alien Tech Used (0) 0 Bonus (436) 436 TOTAL SCORE: 3863 Bonus ------- Follower Combat Kills 136 Registered with UFD 300 Cogmind --------- Core Integrity 0/400 Matter 297/300 Energy 91/100 System Corruption 3% Temperature Cool (0) Movement Core (50) Location -9/Scraptown Parts ------- > --- POWER (1) -------- (None) > --- PROPULSION (3) --- (None) > --- UTILITY (3) ------ (None) > --- WEAPON (2) ------- (None) > --- INVENTORY (5) ---- Light Treads Matter Compressor (207) Visual Processing Unit Drone Bay (2/2) Drone Bay (2/2) Peak State ------------ > --- POWER ------------ Cooled Ion Engine > --- PROPULSION ------- Light Treads Light Treads Light Treads > --- UTILITY ---------- Heat Sink Huge Storage Unit Terrain Scan Processor > --- WEAPON ----------- Improved EM Shotgun Advanced Beam Cannon > --- INVENTORY -------- Ion Engine Cooled Ion Engine Light Treads Light Treads Light Treads Light Treads Light Treads Compact Matter Pod Visual Processing Unit Terrain Scan Processor Power Shielding Light Armor Plating Light Armor Plating Tractor Beam Drone Bay Drone Bay Drone Bay Advanced Beam Cannon Mini Grenade Launcher [Rating: 20] Favorites ----------- Power Cooled Ion Engine Engine Cooled Ion Engine Propulsion Light Treads Treads Light Treads Leg Aluminum Leg Utility Terrain Scan Processor Device Heat Sink Storage Huge Storage Unit Processor Terrain Scan Processor Protection Hardened Light Armor Plating Weapon Particle Gun Energy Gun Particle Gun Energy Cannon Advanced Beam Cannon Ballistic Cannon Improved Light Cannon Launcher Mini Grenade Launcher Build | -11 -10 -10 -9 -9 -9 -9 ------- Run | Yrd Mat Min Mat Sto Rec Scr Slots Evolved 2 | . . . 2 . . . Power . | . . . . . . . Propulsion 1 | . . . 1 . . . Utility 1 | . . . 1 . . . Weapon . | . . . . . . . Parts Attached 38 | 7 4 5 9 10 . 3 Power 5 | 1 2 . 1 1 . . Engine 5 | 1 2 . 1 1 . . Core . | . . . . . . . Reactor . | . . . . . . . Propulsion 14 | 2 1 . 4 7 . . Treads 10 | 2 1 . . 7 . . Leg 4 | . . . 4 . . . Wheel . | . . . . . . . Hover . | . . . . . . . Flight . | . . . . . . . Utility 8 | 2 . 2 3 . . 1 Device 3 | 1 . 1 1 . . . Storage 2 | 1 . . 1 . . . Processor 1 | . . . 1 . . . Hackware . | . . . . . . . Protection 2 | . . 1 . . . 1 Artifact . | . . . . . . . Weapon 11 | 2 1 3 1 2 . 2 Energy Gun 8 | 2 1 3 . 1 . 1 Energy Cannon 1 | . . . . 1 . . Ballistic Gun . | . . . . . . . Ballistic Cannon 1 | . . . 1 . . . Launcher 1 | . . . . . . 1 Special Weapon . | . . . . . . . Impact Weapon . | . . . . . . . Slashing Weapon . | . . . . . . . Piercing Weapon . | . . . . . . . Special Melee Weapon . | . . . . . . . Unidentified Prototypes 4 | . . . 1 3 . . Parts Lost 13 | . 1 4 . 3 . 5 Power 1 | . . . . . . 1 Propulsion 3 | . . 1 . . . 2 Utility 4 | . . 1 . 2 . 1 Weapon 5 | . 1 2 . 1 . 1 Highest Loss Streak 5 | . 1 4 . 1 . 5 To Critical Strikes 3 | . . . . . . 3 Average Backups 14 | . 4 7 8 13 19 20 Power 1 | . . 1 1 1 2 1 Propulsion 3 | . . . 1 3 5 4 Utility 7 | . 3 6 5 7 10 10 Weapon 1 | . . . 1 1 2 3 Tool/Special . | . . . . . . . Unused Backups 17 | . . . . . . 17 Power 3 | . . . . . . 3 Propulsion 2 | . . . . . . 2 Utility 11 | . . . . . . 11 Weapon 1 | . . . . . . 1 Tool/Special . | . . . . . . . Average Slot Usage (%) 90 | . 100 84 92 97 100 81 Engine 11 | . 14 14 11 11 11 11 Treads 27 | . 28 14 4 29 33 33 Leg 2 | . . . 21 1 . . Device 9 | . 14 13 11 7 11 8 Storage 11 | . 14 14 11 11 11 11 Processor 8 | . . . 10 11 11 11 Protection 1 | . . . . 2 . 2 Energy Gun 11 | . 28 26 13 13 11 2 Energy Cannon 2 | . . . . 4 11 . Ballistic Cannon 1 | . . . 8 3 . . Peak Build Rating 20 | 7 8 8 17 20 20 20 Average Rating 14 | 5 7 7 14 17 20 15 On Entrance 11 | . 7 8 8 17 20 20 Naked Turns 1 | . . . . . . 1 Heaviest Build 97 | 11 13 15 96 96 96 97 Greatest Support 60 | 40 40 20 30 60 60 60 Greatest Overweight (x) 9 | 1 . . 9 3 1 1 Average Overweight (x) . | . . . 2 1 1 . Largest Inventory Capacity 25 | 8 8 8 25 25 25 25 Average Capacity 21 | 7 8 8 21 25 25 24 Most Carried 24 | 2 8 8 10 19 19 24 Average Carried 14 | . 4 7 8 13 19 20 Final Capacity 25 | 8 8 8 25 25 25 5 Final Carried 19 | 2 8 8 10 19 19 5 Class Distribution -------------------- 80% | Scavenger-Mutant 14% | Mutant 4% | Commander-Mutant Dominant Class ---------------- Mutant | -10/Materials Scavenger-Mutant | -10/Mines Scavenger-Mutant | -9/Materials Scavenger-Mutant | -9/Storage Scavenger-Mutant | -9/Recycling Scavenger-Mutant | -9/Scraptown Resources | -11 -10 -10 -9 -9 -9 -9 ----------- Run | Yrd Mat Min Mat Sto Rec Scr Matter Collected 1067 | 266 44 130 143 211 7 266 Remotely . | . . . . . . . Salvage Created 2007 | 88 544 251 180 944 . . Parts 107 | 5 28 12 10 52 . . Haulers Intercepted 6 | . 1 . 1 4 . . Recyclers Shooed 1 | . 1 . . . . . Parts Field Recycled . | . . . . . . . Retrieved Matter . | . . . . . . . Parts Self-Destructed . | . . . . . . . Prevented . | . . . . . . . Kills | -11 -10 -10 -9 -9 -9 -9 ------- Run | Yrd Mat Min Mat Sto Rec Scr Combat Hostiles Destroyed 36 | . 9 4 3 20 . . Guns 29 | . 9 4 3 13 . . Cannons 5 | . . . . 5 . . AOE 2 | . . . . 2 . . Classes Destroyed 9 | 2 3 . 1 3 . . Worker 2 | . . . . 2 . . Builder 1 | . 1 . . . . . Tunneler 1 | 1 . . . . . . Hauler 6 | . 1 . 1 4 . . Recycler 3 | 1 1 1 . . . . Watcher 1 | . . . 1 . . . Swarmer 4 | . . . . 4 . . Grunt 24 | . 9 4 3 8 . . Sentry 8 | . . . . 8 . . Best Kill Streak 7 | 2 3 5 4 7 . . Combat Bots Only 7 | . 3 4 3 7 . . Max Kills in Single Turn 2 | 1 1 1 1 2 . . Gunslinging . | . . . . . . . Exploded 1 | . . . . 1 . . Melee . | . . . . . . . Uniques/NPCs Destroyed . | . . . . . . . Combat | -11 -10 -10 -9 -9 -9 -9 -------- Run | Yrd Mat Min Mat Sto Rec Scr Hostile Shots Fired 312 | . 80 29 22 91 . 90 Missed 89 | . 19 8 9 22 . 31 Hits 223 | . 61 21 13 69 . 59 Melee 9 | . . . . . . 9 Projectile 214 | . 61 21 13 69 . 50 Critical Strikes 8 | . 1 2 . . . 5 Actively Blocked 1 | . . 1 . . . . Part Disruptions 1 | . . . . . . 1 Damage Taken 2406 | . 635 235 143 711 12 670 Core 581 | . 126 48 33 83 . 291 Absorbed by Shields . | . . . . . . . Redirected to Shielding 52 | . . 12 . 40 . . Ignored by Resistances 710 | . 190 70 42 212 3 193 Core Remaining (%) 65 | 100 . 30 . . . . Volleys Fired 115 | 4 32 11 13 53 1 1 Largest 2 | 2 2 2 2 2 2 1 Hottest 130 | 80 80 80 105 130 113 45 Shots Fired 222 | 8 64 17 23 106 2 2 Gun 175 | 8 64 17 12 72 1 1 Cannon 46 | . . . 11 34 1 . Launcher 1 | . . . . . . 1 Special . | . . . . . . . Kinetic 28 | . . . 11 17 . . Thermal 174 | 8 64 17 12 72 1 . Explosive 1 | . . . . . . 1 Electromagnetic 19 | . . . . 17 1 1 Robot Hit Streak 20 | 3 18 10 5 20 15 18 Robot Miss Streak 2 | 1 1 1 1 2 . . Penetration Max . | . . . . . . . Secondary Targets 1 | . 1 . . . . . Max Gunslinging Chain 1 | . 1 . . . . . Shots Hit Robots 173 | 6 54 15 13 81 2 2 Core Hits 89 | 3 26 9 6 41 1 3 Critical Kills . | . . . . . . . Critical Parts Destroyed . | . . . . . . . Critical Strikes 4 | . . . 1 3 . . Burn 2 | . . . 1 1 . . Blast 2 | . . . . 2 . . Melee Attacks . | . . . . . . . Impact . | . . . . . . . Slashing . | . . . . . . . Piercing . | . . . . . . . Sneak Attacks . | . . . . . . . Combat Hostiles . | . . . . . . . Follow-up Attacks . | . . . . . . . Damage Inflicted 2840 | 68 611 191 249 1618 38 65 Guns 1974 | 68 606 191 106 960 18 25 Cannons 618 | . . . 143 455 20 . Explosions 231 | . . . . 191 . 40 Melee . | . . . . . . . Ramming 17 | . 5 . . 12 . . Kinetic 349 | . . . 143 206 . . Thermal 2069 | 68 606 191 106 1078 20 . Explosive 84 | . . . . 44 . 40 Electromagnetic 321 | . . . . 278 18 25 Impact . | . . . . . . . Slashing . | . . . . . . . Piercing . | . . . . . . . Highest Corruption 3 | . . . 1 2 2 3 Average Corruption 1 | . . . 1 1 2 2 Corruption Purged . | . . . . . . . Corruption Blocked . | . . . . . . . Effects 38 | . . . 1 10 6 21 Message Errors 8 | . . . . . 3 5 Matter Fused 12 | . . . 1 4 2 5 Heat Flow Errors 4 | . . . . 1 . 3 Energy Discharges 3 | . . . . 1 1 1 Data Loss (minor) 6 | . . . . 3 . 3 Data Loss (major) 2 | . . . . . . 2 Misfires 2 | . . . . 1 . 1 Alerts 1 | . . . . . . 1 Overload Shots . | . . . . . . . Overflow Damage 6 | . . . . 6 . . Projectiles 1 | . . . . 1 . . Explosions 5 | . . . . 5 . . Melee . | . . . . . . . Knockbacks 1 | . . . . 1 . . Impact . | . . . . . . . Kinetic 1 | . . . . 1 . . Secondary . | . . . . . . . Self-Inflicted Damage 32 | . . . . 32 . . Shots 1 | . . . . 1 . . Rammed 4 | . 1 . . 3 . . Targets Rammed 4 | . 1 . . 3 . . Kicked . | . . . . . . . Crushed . | . . . . . . . Highest Temperature 407 | 54 195 235 126 407 15 176 Average Temperature 73 | 25 64 106 47 81 13 84 Received Heat Transfer 1113 | . 468 192 84 324 9 36 Siege Activations . | . . . . . . . Martial Activations . | . . . . . . . Shielding Activations . | . . . . . . . Robots Disrupted . | . . . . . . . Combat Hostiles . | . . . . . . . Robots Corrupted . | . . . . . . . Combat Hostiles . | . . . . . . . Parts Fried 3 | . . . . 3 . . Impact Corruptions . | . . . . . . . Robots Melted . | . . . . . . . Combat Hostiles . | . . . . . . . Parts Melted 11 | . 2 1 1 7 . . Heat Transferred 4664 | 150 1375 423 333 2346 37 . Parts Sabotaged . | . . . . . . . Parts Stolen . | . . . . . . . Parts Stripped . | . . . . . . . Power Chain Reactions 2 | . . . . 2 . . Alert | -11 -10 -10 -9 -9 -9 -9 ------- Run | Yrd Mat Min Mat Sto Rec Scr Maximum Alert Level 1 | . . . . 1 . . Low Security (%) 91 | 100 100 100 100 79 100 . Level 1 8 | . . . . 20 . . Level 2 . | . . . . . . . Level 3 . | . . . . . . . Level 4 . | . . . . . . . Level 5 . | . . . . . . . High Security . | . . . . . . . Max Security . | . . . . . . . Peak Influence 299 | 10 80 70 76 299 5 . Initial . | . . . . . . . Average 50 | 1 28 17 15 104 . . Influence Increases 1364 | 10 237 105 146 861 5 . Destroy 0b10 Robot/C 880 | . 180 80 100 520 . . Destroy 0b10 Robot/NC 70 | 10 15 5 10 30 . . Destroy Leader 274 | . 42 20 24 188 . . Allied During Kill 65 | . . . 3 62 . . Successful Hack 12 | . . . . 7 5 . Disable Machine 27 | . . . 9 18 . . Destroy Structure 36 | . . . . 36 . . Influence Decreases 1364 | 10 237 105 146 861 5 . Time Decay 965 | 10 227 85 97 541 5 . Lost Part 60 | . 10 20 . 30 . . Lost Ally 189 | . . . 49 140 . . Purge Threat 150 | . . . . 150 . . Squads Dispatched 10 | . 1 . 2 7 . . Investigation 4 | . 1 . 1 2 . . Extermination . | . . . . . . . Reinforcement 3 | . . . 1 2 . . Assault . | . . . . . . . Garrison 3 | . . . . 3 . . Intercept . | . . . . . . . Searches Triggered . | . . . . . . . Construction Impeded . | . . . . . . . Haulers Reinforced . | . . . . . . . Active Scanning Responses . | . . . . . . . Cargo Convoy Interrupts . | . . . . . . . Stealth | -11 -10 -10 -9 -9 -9 -9 --------- Run | Yrd Mat Min Mat Sto Rec Scr Distress Signals 5 | . 1 . 1 3 . . Communications Jammed . | . . . . . . . Distress Signals . | . . . . . . . Times Spotted 83 | . 13 4 17 30 2 17 Peak Tracking Total 21 | . 5 4 5 7 1 21 Tactical Retreats . | . . . . . . . Traps | -11 -10 -10 -9 -9 -9 -9 ------- Run | Yrd Mat Min Mat Sto Rec Scr Traps Triggered 3 | . 1 . . 2 . . Indirectly . | . . . . . . . Trap Hack Attempts . | . . . . . . . Triggered . | . . . . . . . Disarmed . | . . . . . . . Reprogrammed . | . . . . . . . Reused . | . . . . . . . Traps Extracted . | . . . . . . . Installed . | . . . . . . . Triggered . | . . . . . . . Machines | -11 -10 -10 -9 -9 -9 -9 ---------- Run | Yrd Mat Min Mat Sto Rec Scr Machines Disabled 4 | . . . 1 2 . 1 Max in Single Turn 1 | . . . 1 1 . 1 Machines Repaired . | . . . . . . . Machines Dismantled . | . . . . . . . Machines Sabotaged . | . . . . . . . Overloaded Fab Kills . | . . . . . . . Hacking | -11 -10 -10 -9 -9 -9 -9 --------- Run | Yrd Mat Min Mat Sto Rec Scr Machines Accessed 10 | . 1 1 2 4 2 . Terminals 9 | . 1 . 2 4 2 . Fabricators . | . . . . . . . Repair Stations . | . . . . . . . Recycling Units . | . . . . . . . Scanalyzers . | . . . . . . . Garrison Access . | . . . . . . . Total Hacks 19 | . 3 1 6 7 2 . Successful 8 | . 1 1 1 4 1 . Failed 11 | . 2 . 5 3 1 . Catastrophic 3 | . 1 . 1 . 1 . Database Lockouts . | . . . . . . . Manual 11 | . 3 . 2 4 2 . Terminals 18 | . 3 . 6 7 2 . Fabricators . | . . . . . . . Repair Stations . | . . . . . . . Recycling Units . | . . . . . . . Scanalyzers . | . . . . . . . Garrison Access . | . . . . . . . Terminal Hacks 8 | . 1 1 1 4 1 . Open Door 2 | . . 1 . 1 . . Branch Access Points 3 | . 1 . 1 1 . . Alert Level 1 | . . . . 1 . . Unreport Threat 1 | . . . . 1 . . Zone Layout 1 | . . . . . 1 . Fabricator Hacks . | . . . . . . . Repair Station Hacks . | . . . . . . . Recycling Unit Hacks . | . . . . . . . Scanalyzer . | . . . . . . . Garrison Access Hacks . | . . . . . . . Unauthorized Hacks . | . . . . . . . Terminals . | . . . . . . . Fabricators . | . . . . . . . Repair Stations . | . . . . . . . Recycling Units . | . . . . . . . Scanalyzers . | . . . . . . . Garrison Access . | . . . . . . . Data Cores Recovered . | . . . . . . . Used . | . . . . . . . Hacking Detections 6 | . 1 . 2 1 2 . Full Trace Events 3 | . 1 . 1 1 . . Feedback Events 1 | . . . 1 . . . Corruption 1 | . . . 1 . . . Feedback Blocked . | . . . . . . . Robot Schematics Acquired . | . . . . . . . Robots Built . | . . . . . . . Authchips . | . . . . . . . Time . | . . . . . . . Total Robot Build Rating . | . . . . . . . Part Schematics Acquired . | . . . . . . . Parts Built . | . . . . . . . Authchips . | . . . . . . . Time . | . . . . . . . Total Part Build Rating . | . . . . . . . Parts Repaired . | . . . . . . . Time . | . . . . . . . Parts Recycled . | . . . . . . . Recycled Matter . | . . . . . . . Retrieved Matter . | . . . . . . . Retrieved Components . | . . . . . . . Parts Scanalyzed . | . . . . . . . Part Schematics Acquired . | . . . . . . . Parts Damaged . | . . . . . . . Bothacking | -11 -10 -10 -9 -9 -9 -9 ------------ Run | Yrd Mat Min Mat Sto Rec Scr Used RIF Installer . | . . . . . . . Robots Hacked . | . . . . . . . Non-combat . | . . . . . . . Combat . | . . . . . . . Robot Hacks Applied . | . . . . . . . Relay Couplers Released . | . . . . . . . Fabnet Peak Effective % . | . . . . . . . Robots Rewired . | . . . . . . . Allies Hacked . | . . . . . . . Hacks Repelled . | . . . . . . . Allies | -11 -10 -10 -9 -9 -9 -9 -------- Run | Yrd Mat Min Mat Sto Rec Scr Total Allies 14 | . . 3 . 10 . 1 Largest Group 10 | . . 3 3 10 3 2 Highest-Rated Group 88 | . . 40 40 88 32 53 Highest-Rated Ally 37 | . . 16 16 16 16 37 Total Orders . | . . . . . . . Ally Attacks 71 | . . . 19 40 5 7 Total Damage 616 | . . . 153 291 59 113 Kills 8 | . . . 2 6 . . Allies Corrupted . | . . . . . . . Allies Melted 1 | . . . . . 1 . Intel | -11 -10 -10 -9 -9 -9 -9 ------- Run | Yrd Mat Min Mat Sto Rec Scr Active Infowar (turns) 1375 | 32 568 4 470 301 . . Terrain 771 | . . . 470 301 . . Seismic 604 | 32 568 4 . . . . Robot Analysis Total . | . . . . . . . Derelict Logs Recovered . | . . . . . . . Drone Launches . | . . . . . . . Drone Recoveries . | . . . . . . . Exploration | -11 -10 -10 -9 -9 -9 -9 ------------- Run | Yrd Mat Min Mat Sto Rec Scr Turns Passed 4866 | 98 568 329 470 1245 471 1685 Spaces Moved 1898 | 49 284 184 139 392 172 678 Core 8 | 4 . . . . . 4 Treads 1787 | 45 284 184 52 376 172 674 Legs 103 | . . . 87 16 . . Wheels . | . . . . . . . Hover . | . . . . . . . Flight . | . . . . . . . Fastest Speed 50 | 50 160 160 160 240 240 50 Average Speed 224 | 152 160 160 295 254 240 238 Slowest Speed 750 | 160 160 160 750 330 240 240 Overloaded Moves . | . . . . . . . Propulsion Burnouts . | . . . . . . . Robots Hopped . | . . . . . . . Potential Cave-ins . | . . . . . . . Cave-ins Triggered . | . . . . . . . Exploration Rate (%) 36 | 4 47 36 16 69 39 47 Regions Visited 6 Branch Regions 4 Pre-discovered Areas . | . . . . . . . Known Exits Taken 3 | . 1 . 1 1 . . Unknown Exits Taken 3 | 1 . 1 . . 1 . Scrap Searched 3 | . . . . . . 3 Spaces Dug . | . . . . . . . Terrain Destroyed 47 | . . . . 38 . 9 Melee . | . . . . . . . Projectile 1 | . . . . 1 . . AOE 46 | . . . . 37 . 9 Terrain Rammed . | . . . . . . . Walls Destroyed . | . . . . . . . Machines Disabled . | . . . . . . . Actions | -11 -10 -10 -9 -9 -9 -9 --------- Run | Yrd Mat Min Mat Sto Rec Scr Total 2281 | 61 333 201 175 532 229 750 Wait 158 | . 4 . 8 54 57 35 Move 1892 | 48 283 183 138 391 171 678 Hop . | . . . . . . . Pick Up 34 | 2 6 1 3 11 . 11 Fast Attach 21 | 7 1 2 5 4 . 2 Attach 6 | . . 1 1 4 . . Detach 3 | . . . . . . 3 Swap 14 | . 3 2 3 5 . 1 Drop 34 | . 3 1 4 7 . 19 Fire 115 | 4 32 11 13 53 1 1 Melee . | . . . . . . . Ram . | . . . . . . . Kick . | . . . . . . . Crush 4 | . 1 . . 3 . . Escape Stasis . | . . . . . . . Rewire . | . . . . . . . Trap . | . . . . . . . Miscellaneous . | . . . . . . . Route ------- -11/Scrapyard -10/Materials (discovered 2 exits: *Min x2) -10/Mines -9/Materials (discovered 2 exits: Min / *Sto) -9/Storage -9/Recycling -9/Scraptown History --------- Turn | Location | Event 31 | -11/Scrapyard | Discovered new exit (range 16) 99 | -11/Scrapyard | Entered Materials 307 | -10/Materials | Build established: Mutant 442 | -10/Materials | Core integrity fell below 50% 510 | -10/Materials | Discovered new exit (range 16) 580 | -10/Materials | Identified exit to Mines 667 | -10/Materials | Entered Mines 671 | -10/Mines | Met a Derelict bent on vengeance 719 | -10/Mines | Lost 4 parts (1n1u2w) 801 | -10/Mines | Met a Derelict who couldn't figure out how to use a Trap Extractor 920 | -10/Mines | Assisted by bots powering up and referring to "LRC-V3" 960 | -10/Mines | Discovered new exit (range 9) 996 | -10/Mines | Entered Materials 996 | -9/Materials | Accompanied by 3 allies 996 | -9/Materials | Evolved 2 slots: Propulsion x1, Utility x1 1018 | -9/Materials | Build established: Scavenger-Mutant 1107 | -9/Materials | Lost 3 allies 1241 | -9/Materials | Identified exit to Mines 1241 | -9/Materials | Identified exit to Storage 1466 | -9/Materials | Entered Storage 1851 | -9/Storage | Destroyed 7 combat bots 1940 | -9/Storage | Identified exit to Recycling 2072 | -9/Storage | Garrison activated, responded to threat 2146 | -9/Storage | Met 01-MTF 2214 | -9/Storage | Assisted by bots powering up and referring to "LRC-V3" 2413 | -9/Storage | Lost 3 allies 2711 | -9/Storage | Entered Recycling 2711 | -9/Recycling | Accompanied by 4 allies (01-MTF) 3060 | -9/Recycling | Scanned before Scraplab entrance 3111 | -9/Recycling | Entered Scraplab 3141 | -9/Recycling | Discovered new exit (range 3) 3182 | -9/Recycling | Entered Scraptown 3182 | -9/Scraptown | Accompanied by 1 ally 3514 | -9/Scraptown | Visited UFD Registry 3514 | -9/Scraptown | Registered with UFD as "Smoothplate" 3593 | -9/Scraptown | Visited Curators Association 3646 | -9/Scraptown | Visited Scrap Suit Storage 3713 | -9/Scraptown | Visited Botcube Research 3727 | -9/Scraptown | Found Botcube 4055 | -9/Scraptown | Visited Science Guys 4100 | -9/Scraptown | Visited Scrapoid Pod Storage 4163 | -9/Scraptown | Visited Scrapoid Research Area 4201 | -9/Scraptown | Visited Chapter 10 4266 | -9/Scraptown | Visited DA-N13 Charitable Foundation 4276 | -9/Scraptown | Found DCF Scrap (28 items) 4530 | -9/Scraptown | Botcube activated 4546 | -9/Scraptown | Botcube completed mutation into treaded form, armed with 1 cannon. 4678 | -9/Scraptown | Visited Cartography Club 4750 | -9/Scraptown | Visited Derelict Rescue Squad 4779 | -9/Scraptown | Found DRS Beacon 4782 | -9/Scraptown | Found DRS Beacon 4806 | -9/Scraptown | Found DRS Beacon 4848 | -9/Scraptown | Attacked by Scraptown defenders 4865 | -9/Scraptown | Core integrity fell below 50% 4866 | -9/Scraptown | Core integrity fell below 20% 4867 | -9/Scraptown | Destroyed by JG-RIB(x) with Makeshift Spear Last Messages --------------- Penetrated by HV Slug. Critical hit (Destroy). Lgt. Treads destroyed. HV Slug penetrates EQ-BGI(r). EQ-BGI(r) suffers critical hit (Destroy). Penetrated by HV Slug. HV Slug penetrates EQ-BGI(r). Bolt penetrates Machine. Penetrated by Bolt. Dropped Lgt. Treads. EM Shotgun destroyed. The unstable cave ceiling collapses. 1J-INB(h) destroyed. Penetrated by Bolt. Critical hit (Impale). Terrain Scan Processor destroyed. HV Slug penetrates Wall. Penetrated by HV Slug. HV Slug penetrates Machine. Bolt penetrates MW-ZMF(p). Map ----- +----------------------------------------------------+ | ??????????????????????? ????????????????????????? | | ?????????????#####????? #???????????????????????? | | #########???""""" ???? #???????????????????????? | | """""""""??? " " ???# #?????????##????????????? | | " ##??? """?# #????????? #????????????? | | "" #??? """## #???????## #????????????? | | "" #?# " """## #?????### ?????????????? | | """" #?#""" " ## #?????#X###?????????????? | | "" " #?#""" ## #?????### ####??????????? | | """" #?#""" ""## #?????# #??????????? | | "" #?# " "## ####### ######??????????? | | " ###?? "## c# #??????????? | | #???? ??# z# #??????????? | | ##### #####?????# #???# ## ###########??????????? | | ##### ########### ##### c## ##???????????????????? | | """"" """"""""""" """"" "" "##############??????? | | "## """"""""#??????? | | "## " " " "#??????? | | "## &"#??????? | | "## &"#??????? | | p "#??????? | | """""""""""""""""""""""p h "## ""#??????? | | """""""""""""""""""""" "## " " " "#??????? | | ### ################"" =h"## """"""""#??????? | | ? ?????????????#"" ![x!]##############??????? | | ????????????#"" &@%[=#??""""#????????????? | | "" "" ????????????#" [!rx] #?? "#????????????? | | "" ""?????????# # =]!!*#? "#????????????? | | " ?????###### # &!rx!## "#????????????? | | ? "" ????? E *=%!* !"#????????????? | | ?? "" ????? E !%="## "#????????????? | | ?? ?? ??????###### =*"#? "#????????????? | | ??? ????????????# # "#??""" #????????????? | | ?"" "???????????####" "#??#####????????????? | | ? ??????????????#"" "#########???????????? | | ? ??????????????#"" Ep"##" """"""""????????? | | ### ################"" "## """"" ""????????? | | """"""""""""""""""""""" "## "" """???????? | | """""""""""""""""""""""hjh " ""???????? | | c"## ""#??????? | | "## "" "#??????? | | "## "" X"#??????? | | ## """ "#??????? | | # "/"?"#??????? | | """"""" """"""""""" """""" ## "" """"?????????? | | ####### ########### ###### ## "&&&"""??????????? | | ?# #??#" ## ######?##???????????? | | ?## ##??#" """## #???????????????????? | | ##"! !"#??# " ""## #???????????????????? | | ##"! !"#??#"" """## #???????????????????? | +----------------------------------------------------+ Best States ------------- Heat Dissipation 38 Energy Generation 14 Energy Capacity 280 Matter Stores 300 Matter Capacity 300 Sight Range 16 Terrain Scan Range 16 Terrain Scan Density 85 Armor Coverage 150 Resistance: KI 20 Resistance: TH 20 Resistance: EX 20 Resistance: EM 20 Resistance: I 20 Resistance: S 20 Resistance: P 20 Propulsion Shielding 33 Evasion (%) 40 Recoil Reduction 3 Offensive Hacking 10 Item Schematics ----------------- None Robot Schematics ------------------ None Fabricated ------------ Nothing Repaired ---------- Nothing Alien Tech Used ----------------- None Achievements -------------- None Challenges ------------ None Game ------ Seed GravjetChromionDevice Manual? 0 Play Time 00:27:13 Cumulative 111.2 hours Start 2025.07.21 @ 18:10:04 End 2025.07.21 @ 21:47:00 Sessions 3 Manual Loads 0 Difficulty Adventurer Special Mode None Game No. 89 Rogue 0 Adventurer 89 Explorer 0 Win Type - Total 2 Types 2/0/0/0/0/0/0/0/0/0 Lore% 53 Gallery% 53 Achievement% 51 Wizard Run 0 Options --------- Layout 1 ASCII 0 Keyboard 0 Movement Mouse Keybinds 0 Fullscreen 1 Font 24/Smallcaps Map View 50x35 Zoom Use 4% Tactical HUD 0 Map Filters NONE Filters NONE Steam 1 RUN: f36dd0e6-cc60-4698-a3c6-1abcfd5b1434